fUSD/lending_fUSD_20260112
["ID","MTS","AMOUNT","RATE_DAILY","PERIOD"]
[401435339,1768213841525,-150.0,0.000162,2]
[401435341,1768213841536,-150.0,0.000162,2]
[401435343,1768213841545,-150.0,0.000162,2]
[401435344,1768213841557,-150.0,0.000162,2]
[401435347,1768213841569,-150.0,0.000162,2]
[401435349,1768213841578,-150.0,0.000162,2]
[401435351,1768213841589,-150.0,0.000162,2]
[401435353,1768213841598,-150.0,0.000162,2]
[401435355,1768213841608,-5534.0,0.000162,5]
[401435357,1768213841617,-150.0,0.00016227,2]
[401435359,1768213841627,-150.0,0.00016255,2]
[401435361,1768213841637,-150.0,0.00016282,2]
[401435363,1768213841646,-207.75461471,0.00016292,2]
[401435365,1768213841655,-150.0,0.00016309,2]
[401435367,1768213841664,-3766.56455891,0.00016326,2]
[401435369,1768213841673,-150.0,0.00016336,2]
[401435371,1768213841683,-150.0,0.00016364,2]
[401435373,1768213841692,-150.0,0.00016391,2]
[401435375,1768213841701,-150.0,0.00016418,2]
[401435377,1768213841710,-500.0,0.00016438,2]
[401435379,1768213841719,-500.0,0.00016438,2]
[401435381,1768213841730,-500.0,0.00016438,2]
[401435383,1768213841739,-500.0,0.00016438,2]
[401435385,1768213841748,-500.0,0.00016438,2]
[401435387,1768213841758,-151.0,0.00016438,2]
[401435389,1768213841767,-150.0,0.00016445,2]
[401435391,1768213841775,-150.0,0.00016473,2]
[401435393,1768213841785,-150.0,0.000165,2]
[401435395,1768213841795,-150.0,0.000165,2]
[401435397,1768213841804,-150.0,0.000165,2]
[401435399,1768213841813,-150.0,0.000165,2]
[401435401,1768213841822,-500.0,0.00016507,2]
[401435403,1768213841831,-150.0,0.00016527,2]
[401435405,1768213841841,-150.0,0.00016555,2]
[401435407,1768213841850,-150.0,0.0001656,2]
[401435409,1768213841860,-150.0,0.00016582,2]
[401435411,1768213841869,-150.0,0.00016609,2]
[401435413,1768213841878,-150.0,0.00016636,2]
[401435415,1768213841888,-150.0,0.0001665,2]
[401435417,1768213841897,-150.0,0.0001665,2]
[401435419,1768213841906,-150.0,0.0001665,2]
[401435421,1768213841915,-150.0,0.00016664,2]
[401435423,1768213841925,-150.0,0.00016691,2]
[401435425,1768213841934,-159.73,0.00016712,2]
[401435427,1768213841943,-150.0,0.00016718,2]
[401435430,1768213841953,-664.55,0.00016719,2]
[401435432,1768213841962,-150.0,0.00016745,2]
[401435434,1768213841971,-150.0,0.00016773,2]
[401435436,1768213841981,-150.0,0.000168,2]
[401435438,1768213841990,-150.0,0.000168,2]
[401435439,1768213841998,-150.0,0.000168,2]
[401435441,1768213842008,-150.0,0.000168,2]
[401435444,1768213842018,-150.0,0.000168,2]
[401435446,1768213842031,-150.0,0.00016827,2]
[401435447,1768213842040,-3766.56455891,0.00016851,2]
[401435448,1768213842049,-150.0,0.00016855,2]
[401435449,1768213842059,-1030.2,0.00016869,2]
[401435450,1768213842068,-150.0,0.00016882,2]
[401435451,1768213842077,-150.0,0.00016909,2]
[401435452,1768213842086,-150.0,0.0001692,2]
[401435453,1768213842095,-165.22671332,0.00016935,2]
[401435454,1768213842105,-150.0,0.00016936,2]
[401435455,1768213842116,-150.0,0.00016964,2]
[401435456,1768213842126,-1030.2,0.00016972,2]
[401435457,1768213842135,-150.0,0.00016991,2]
[401435458,1768213842145,-250.0,0.00017,2]
[401435459,1768213842154,-150.0,0.00017018,2]
[401435460,1768213842165,-150.0,0.00017045,2]
[401435461,1768213842175,-158.73335703,0.00017055,2]
[401435462,1768213842184,-172.74586302,0.00017073,2]
[401435463,1768213842195,-500.0,0.00017073,2]
[401435464,1768213842204,-500.0,0.00017073,2]
[401435465,1768213842214,-500.0,0.00017073,2]
[401435466,1768213842224,-500.0,0.00017073,2]
[401435467,1768213842234,-500.0,0.00017073,2]
[401435468,1768213842243,-500.38035534,0.00017073,2]
[401435469,1768213842253,-500.57959935,0.00017073,2]
[401435470,1768213842263,-500.0,0.00017073,2]
[401435471,1768213842272,-501.67211681,0.00017073,2]
[401435472,1768213842282,-500.83788468,0.00017073,2]
[401435473,1768213842292,-500.51842778,0.00017073,2]
[401435474,1768213842302,-500.0,0.00017073,2]
[401435475,1768213842312,-150.0,0.00017073,2]
[401435476,1768213842322,-1030.2,0.00017075,2]
[401435477,1768213842338,-207.75461471,0.00017096,2]
[401435478,1768213842348,-359.57914319,0.00017099,2]
[401435479,1768213842357,-332.7592684,0.00017099,2]
[401435480,1768213842367,-998.0,0.00017099,2]
[401435481,1768213842377,-150.0,0.000171,2]
[401435482,1768213842387,-150.0,0.000171,2]
[401435483,1768213842397,-150.0,0.000171,2]
[401435484,1768213842406,-150.0,0.000171,2]
[401435485,1768213842416,-150.0,0.000171,2]
[401435486,1768213842426,-150.0,0.000171,2]
[401435487,1768213842436,-150.0,0.000171,2]
[401435488,1768213842445,-150.0,0.000171,2]
[401435489,1768213842455,-150.0,0.000171,2]
[401435490,1768213842465,-150.0,0.00017127,2]
[401435491,1768213842474,-150.0,0.00017155,2]
[401435492,1768213842484,-1030.2,0.00017177,2]
[401435493,1768213842493,-171.53,0.00017178,2]
[401435494,1768213842503,-179.28,0.00017178,2]
[401435495,1768213842515,-556.81,0.00017178,2]
[401435496,1768213842524,-179.28,0.00017178,2]
[401435497,1768213842534,-556.81,0.00017178,2]
[401435498,1768213842543,-556.81,0.00017178,2]
[401435499,1768213842552,-179.28,0.00017178,2]
[401435500,1768213842563,-179.28,0.00017178,2]
[401435501,1768213842572,-556.81,0.00017178,2]
[401435502,1768213842582,-179.28,0.00017178,2]
[401435503,1768213842591,-150.0,0.00017182,2]
[401435504,1768213842601,-6157.84376205,0.00017208,2]
[401435505,1768213842610,-150.0,0.00017209,2]
[401435508,1768213842972,-150.0,0.00017236,2]
[401435509,1768213842990,-150.0,0.00017264,2]
[401435510,1768213843001,-150.0,0.0001728,2]
[401435511,1768213843011,-1030.2,0.0001728,2]
[401435512,1768213843020,-150.0,0.00017291,2]
[401435513,1768213843030,-2080.0,0.00017305,2]
[401435514,1768213843040,-150.0,0.00017318,2]
[401435515,1768213843050,-250.0,0.00017337,2]
[401435516,1768213843060,-150.0,0.00017345,2]
[401435517,1768213843069,-823.0,0.00017356,2]
[401435518,1768213843079,-150.0,0.00017373,2]
[401435519,1768213843090,-3766.56455891,0.00017375,2]
[401435520,1768213843099,-1030.2,0.00017383,2]
[401435521,1768213843109,-150.0,0.000174,2]
[401435522,1768213843119,-150.0,0.000174,2]
[401435523,1768213843129,-150.0,0.000174,2]
[401435524,1768213843139,-150.0,0.000174,2]
[401435525,1768213843148,-150.0,0.000174,2]
[401435526,1768213843157,-1000.0,0.000174,2]
[401435527,1768213843167,-500.0,0.00017427,2]
[401435528,1768213843177,-500.0,0.00017427,2]
[401435529,1768213843187,-150.0,0.00017427,2]
[401435530,1768213843197,-150.0,0.00017427,2]
[401435531,1768213843207,-55884.54673635,0.00017428,2]
[401435532,1768213843217,-90907.82007262,0.00017428,2]
[401435533,1768213843227,-128388.97381159,0.00017428,2]
[401435534,1768213843236,-166132.6227,0.00017428,2]
[401435535,1768213843246,-150.0,0.00017455,2]
[401435536,1768213843257,-150.0,0.00017482,2]
[401435537,1768213843267,-1030.2,0.00017486,2]
[401435538,1768213843277,-150.0,0.00017509,2]
[401435539,1768213843287,-3292.0,0.00017524,2]
[401435540,1768213843297,-150.0,0.00017536,2]
[401435541,1768213843307,-150.0,0.0001755,2]
[401435542,1768213843316,-150.0,0.0001755,2]
[401435543,1768213843326,-150.0,0.0001755,2]
[401435544,1768213843337,-150.0,0.00017564,2]
[401435545,1768213843346,-1030.2,0.00017589,2]
[401435546,1768213843356,-150.0,0.00017591,2]
[401435547,1768213843365,-1198.0,0.000176,2]
[401435548,1768213843375,-2080.0,0.00017602,2]
[401435549,1768213843385,-150.0,0.00017618,2]
[401435550,1768213843395,-1000.0,0.00017621,2]
[401435551,1768213843405,-746.48133113,0.00017621,2]
[401435552,1768213843415,-493.49118932,0.00017621,2]
[401435553,1768213843424,-1000.0,0.00017621,2]
[401435554,1768213843433,-1000.0,0.00017621,2]
[401435555,1768213843442,-150.0,0.0001764,2]
[401435556,1768213843451,-631.58618577,0.0001764,2]
[401435557,1768213843461,-150.0,0.00017645,2]
[401435558,1768213843470,-150.0,0.00017673,2]
[401435559,1768213843480,-1030.2,0.00017692,2]
[401435560,1768213843489,-150.0,0.000177,2]
[401435561,1768213843498,-150.0,0.000177,2]
[401435562,1768213843507,-150.0,0.000177,2]
[401435563,1768213843521,-150.0,0.000177,2]
[401435564,1768213843530,-150.0,0.00017727,2]
[401435565,1768213843539,-1000.0,0.00017728,2]
[401435566,1768213843548,-1000.0,0.00017742,2]
[401435567,1768213843559,-1000.0,0.00017752,2]
[401435568,1768213843568,-150.0,0.00017755,2]
[401435569,1768213843577,-1000.0,0.00017765,2]
[401435570,1768213843589,-2106.0,0.00017766,2]
[401435571,1768213843599,-1000.0,0.00017768,2]
[401435572,1768213843608,-1000.0,0.00017768,2]
[401435573,1768213843617,-1000.0,0.0001777,2]
[401435574,1768213843626,-150.0,0.00017779,2]
[401435575,1768213843636,-150.0,0.00017782,2]
[401435576,1768213843645,-150.0,0.00017784,2]
[401435577,1768213843654,-1000.0,0.00017786,2]
[401435578,1768213843663,-1000.0,0.0001779,2]
[401435579,1768213843672,-995.93116772,0.00017792,2]
[401435580,1768213843681,-1000.0,0.00017793,2]
[401435581,1768213843691,-1030.2,0.00017794,2]
[401435582,1768213843700,-6000.0,0.000178,2]
[401435583,1768213843709,-1000.0,0.00017805,2]
[401435584,1768213843718,-1000.0,0.00017805,2]
[401435585,1768213843727,-1000.0,0.00017806,2]
[401435586,1768213843736,-220.7493929,0.00017807,2]
[401435587,1768213843746,-150.0,0.00017809,2]
[401435588,1768213843755,-995.93116772,0.00017814,2]
[401435589,1768213843765,-1000.0,0.00017816,2]
[401435590,1768213843774,-1000.0,0.00017818,2]
[401435591,1768213843783,-910.24842296,0.0001782,2]
[401435592,1768213843792,-500.0,0.00017829,2]
[401435593,1768213843801,-25000.0,0.0001783,3]
[401435594,1768213843810,-83171.52894996,0.0001783,2]
[401435595,1768213843819,-500.0,0.00017833,2]
[401435596,1768213843828,-995.93116772,0.00017835,2]
[401435597,1768213843839,-150.0,0.00017836,2]
[401435598,1768213843848,-25000.0,0.00017838,3]
[401435599,1768213843858,-2106.0,0.00017847,2]
[401435600,1768213843867,-25000.0,0.00017847,3]
[401435601,1768213843877,-200.0,0.00017855,2]
[401435602,1768213843886,-25000.0,0.00017856,3]
[401435603,1768213843895,-200.0,0.00017856,2]
[401435604,1768213843904,-995.93116772,0.00017857,2]
[401435605,1768213843913,-1000.0,0.0001786,2]
[401435606,1768213843922,-222.97211581,0.0001786,2]
[401435607,1768213843931,-150.0,0.00017864,2]
[401435608,1768213843941,-25000.0,0.00017865,3]
[401435609,1768213843950,-1000.0,0.00017866,2]
[401435610,1768213843959,-1000.0,0.00017866,2]
[401435611,1768213843968,-150.0,0.00017869,2]
[401435612,1768213843978,-25000.0,0.00017874,3]
[401435613,1768213843987,-995.93116772,0.00017878,2]
[401435614,1768213843996,-500.0,0.00017882,2]
[401435615,1768213844005,-25000.0,0.00017882,3]
[401435616,1768213844015,-150.0,0.00017891,2]
[401435617,1768213844024,-25000.0,0.00017891,3]
[401435618,1768213844033,-1000.0,0.00017892,2]
[401435619,1768213844043,-1000.0,0.00017894,2]
[401435620,1768213844052,-1030.2,0.00017897,2]
[401435621,1768213844061,-25000.0,0.000179,3]
[401435622,1768213844070,-1054.4366,0.000179,2]
[401435623,1768213844079,-14981.27545297,0.000179,3]
[401435624,1768213844089,-3766.56455891,0.000179,2]
[401435625,1768213844098,-2090.29615035,0.000179,2]
[401435626,1768213844107,-718.34267946,0.000179,3]
[401435627,1768213844116,-207.75461471,0.000179,2]
[401435628,1768213844126,-995.93116772,0.000179,2]
[401435629,1768213844135,-165.22671332,0.000179,2]
[401435630,1768213844145,-9694.0,0.000179,2]
[401435631,1768213844155,-168.18552807,0.00017905,2]
[401435632,1768213844165,-1000.0,0.00017908,2]
[401435633,1768213844175,-1000.0,0.00017909,2]
[401435634,1768213844184,-1000.0,0.0001791,2]
[401435635,1768213844194,-1000.0,0.0001791,2]
[401435636,1768213844204,-1000.0,0.00017913,2]
[401435637,1768213844213,-1000.0,0.00017914,2]
[401435638,1768213844223,-1000.0,0.00017916,2]
[401435639,1768213844233,-150.0,0.00017918,2]
[401435640,1768213844242,-1000.0,0.00017928,2]
[401435641,1768213844252,-1000.0,0.00017933,2]
[401435642,1768213844261,-1000.0,0.00017935,2]
[401435643,1768213844271,-150.0,0.00017945,2]
[401435644,1768213844280,-1000.0,0.00017946,2]
[401435645,1768213844290,-1000.0,0.00017953,2]
[401435646,1768213844300,-1000.0,0.00017957,2]
[401435647,1768213844309,-1000.0,0.00017958,2]
[401435648,1768213844319,-1000.0,0.00017968,2]
[401435649,1768213844329,-6077.0,0.00017973,2]
[401435650,1768213844338,-381.34584895,0.00017973,2]
[401435651,1768213844348,-501.47661499,0.00017973,2]
[401435652,1768213844357,-501.78685961,0.00017973,2]
[401435653,1768213844367,-503.85916191,0.00017973,2]
[401435654,1768213844377,-500.0,0.00017973,2]
[401435655,1768213844386,-503.67264874,0.00017973,2]
[401435656,1768213844395,-500.55153068,0.00017973,2]
[401435657,1768213844406,-498.39272947,0.00017973,2]
[401435658,1768213844415,-501.38258594,0.00017973,2]
[401435659,1768213844425,-501.10571804,0.00017973,2]
[401435660,1768213844434,-515.69548792,0.00017973,2]
[401435661,1768213844443,-500.0,0.00017973,2]
[401435662,1768213844453,-644.05438872,0.00017973,2]
[401435663,1768213844463,-500.0,0.00017973,2]
[401435664,1768213844473,-500.0,0.00017973,2]
[401435665,1768213844482,-502.86808452,0.00017973,2]
[401435666,1768213844491,-500.0,0.00017973,2]
[401435667,1768213844501,-502.23302881,0.00017973,2]
[401435668,1768213844511,-501.12911319,0.00017973,2]
[401435669,1768213844523,-150.0,0.00017973,2]
[401435670,1768213844532,-500.0,0.00017982,2]
[401435671,1768213844542,-152.92662848,0.00017982,2]
[401435672,1768213844552,-1000.0,0.0001799,2]
[401435673,1768213844561,-1856.57725944,0.0001799,2]
[401435674,1768213844571,-659.24928512,0.0001799,2]
[401435675,1768213844581,-659.24928512,0.0001799,2]
[401435677,1768213844592,-1000.0,0.00017996,2]
[401435678,1768213844602,-162.25638013,0.00017999,2]
[401435679,1768213844611,-500.0,0.00017999,2]
[401435680,1768213844620,-500.0,0.00017999,2]
[401435681,1768213844630,-500.0,0.00017999,2]
[401435682,1768213844640,-500.0,0.00017999,2]
[401435683,1768213844649,-456.07319796,0.00017999,2]
[401435684,1768213844659,-300.0,0.00017999,2]
[401435685,1768213844668,-666.0,0.00017999,2]
[401435686,1768213844677,-300.0,0.00017999,2]
[401435687,1768213844687,-300.0,0.00017999,2]
[401435688,1768213844695,-666.0,0.00017999,2]
[401435689,1768213844704,-14302.37222132,0.00017999,2]
[401435690,1768213844713,-300.0,0.00017999,2]
[401435691,1768213844723,-666.0,0.00017999,2]
[401435692,1768213844732,-500.0,0.00017999,2]
[401435693,1768213844741,-500.0,0.00017999,2]
[401435694,1768213844751,-500.0,0.00017999,2]
[401435695,1768213844760,-500.0,0.00017999,2]
[401435696,1768213844769,-500.0,0.00017999,2]
[401435697,1768213844778,-500.0,0.00017999,2]
[401435698,1768213844787,-500.0,0.00017999,2]
[401435699,1768213844796,-500.0,0.00017999,2]
[401435700,1768213844805,-500.0,0.00017999,2]
[401435701,1768213844815,-500.0,0.00017999,2]
[401435702,1768213844824,-500.0,0.00017999,2]
[401435703,1768213844835,-369.87509882,0.00017999,2]
[401435704,1768213844844,-300.0,0.00017999,2]
[401435705,1768213844854,-156.71525666,0.00018,2]
[401435706,1768213844863,-154.38953807,0.00018,2]
[401435707,1768213844873,-265.81954746,0.00018,2]
[401435708,1768213844882,-155.07098724,0.00018,2]
[401435709,1768213844892,-263.65847091,0.00018,2]
[401435710,1768213844902,-151.45444701,0.00018,2]
[401435711,1768213844912,-155.70825827,0.00018,2]
[401435712,1768213844921,-152.37123583,0.00018,2]
[401435713,1768213844931,-152.34445976,0.00018,2]
[401435714,1768213844941,-154.70586823,0.00018,2]
[401435715,1768213844950,-248.59699216,0.00018,2]
[401435716,1768213844959,-5699169.1720525,0.00018,2]
[401435717,1768213845037,-453233.02110652,0.00018,2]
[401435718,1768213845446,-151.0,0.00015197,2]
[401435719,1768213845456,-151.0,0.00015197,2]
[401435720,1768213845465,-3883.18066026,0.00018,2]
[401435721,1768213845524,-2386.97270748,0.00018,2]
[401435722,1768213845535,-27223.85636467,0.00018,2]
[401435723,1768213845656,-339.6165,0.00018,2]
[401435724,1768213846050,-7415.94707886,0.00018,2]
[401435725,1768213846104,-2534.58786656,0.00018,2]
[401435726,1768213846160,-332.818322,0.00018,2]
[401435732,1768214338405,999.0,0.00012911,3]
[401435733,1768214586075,-818.24543962,0.00012732,2]
[401435734,1768214589285,-265.59194196,0.00012732,2]
[401435735,1768214590836,-324.87275436,0.00012732,2]
[401435736,1768214597182,-238.94714755,0.00012732,2]
[401435737,1768214599997,-217.9782436,0.00012732,2]
[401435738,1768214609401,5534.0,0.00014,3]
[401435739,1768214641100,5534.0,0.00014,3]
[401435740,1768214672793,5534.0,0.000141,5]
[401435741,1768214673038,5534.0,0.000138,3]
[401435742,1768214675794,-220.50650631,0.00012394,2]
[401435743,1768214677822,-156.09199774,0.00012394,2]
[401435744,1768214704575,5534.0,0.00014,5]
[401435745,1768214704819,5534.0,0.000137,3]
[401435746,1768214735813,-206.46217732,0.00012277,2]
[401435747,1768214736331,5534.0,0.00014,5]
[401435748,1768214736570,1390.0,0.000137,3]
[401435749,1768214737513,-916.14782113,0.00012277,2]
[401435750,1768214740145,-182.25904905,0.00012277,2]
[401435751,1768214743377,-253.39799004,0.00012277,2]
[401435752,1768214744984,-231.82683937,0.00012277,2]
[401435754,1768214832106,-150.0,0.00012238,2]
[401435755,1768214832127,-28.70612309,0.00012277,2]
[401435756,1768214832147,-2.89149595,0.00012394,2]
[401435757,1768214832167,-8.25505065,0.00012732,2]
[401435758,1768214885795,-397.32219352,0.00012438,2]
[401435759,1768214888609,-351.54260527,0.00012438,2]
[401435760,1768214892471,-170.20645557,0.00012438,2]
[401435761,1768214895922,-150.0,0.0001215,2]
[401435762,1768214895944,-84.06004276,0.00012438,2]
[401435763,1768214896994,-220.47777362,0.00012438,2]
[401435764,1768214901804,-186.26906812,0.00012438,2]
[401435765,1768214903349,-187.85577662,0.00012438,2]
[401435766,1768214907749,-177.02003732,0.00012438,2]
[401435767,1768214910296,-26.3260472,0.00012438,2]
[401435768,1768214910319,-294.1945897,0.00012512,2]
[401435769,1768215031975,-15.08509166,0.00012512,2]
[401435770,1768215031985,-253.0,0.00012512,2]
[401435771,1768215031995,-195.0,0.00012585,2]
[401435772,1768215032005,-158.11278045,0.00012732,2]
[401435773,1768215032014,-141.29942226,0.00012732,2]
[401435774,1768215032024,-183.99062804,0.00012821,2]
[401435775,1768215032033,-519798.55129068,0.00012868,2]
[401435776,1768215032045,-100893.62059947,0.00012868,2]
[401435777,1768215032055,-56518.09562219,0.00012868,2]
[401435778,1768215032067,-78662.28064698,0.00012868,2]
[401435779,1768215032281,-3995.7376095,0.00012868,2]
[401435870,1768215038087,-161.93670299,0.00012867,2]
[401435871,1768215038098,-315.07353855,0.00012867,2]
[401435872,1768215038110,-144.11472135,0.00012867,2]
[401435873,1768215038119,-194.20618594,0.00012867,2]
[401435874,1768215038142,-305.79381406,0.00012867,2]
[401435875,1768215038151,-500.0,0.00012867,2]
[401435876,1768215038160,-500.0,0.00012867,2]
[401435877,1768215038170,-500.0,0.00012867,2]
[401435878,1768215038180,-500.0,0.00012867,2]
[401435879,1768215038189,-500.0,0.00012867,2]
[401435880,1768215038198,-500.0,0.00012867,2]
[401435881,1768215038208,-500.0,0.00012867,2]
[401435882,1768215038217,-648.87487836,0.00012867,2]
[401435883,1768215038226,-500.0,0.00012867,2]
[401435884,1768215038236,-500.0,0.00012867,2]
[401435885,1768215038245,-500.0,0.00012867,2]
[401435886,1768215038255,-240131.71423118,0.00012868,2]
[401435887,1768215038265,-3389.74947875,0.00012921,2]
[401435888,1768215038274,-158.11278045,0.00012921,2]
[401435889,1768215038284,-151.4111663,0.0001296,2]
[401435890,1768215038293,-150.0,0.00012966,2]
[401435891,1768215038303,-1200.0,0.00012966,2]
[401435892,1768215038312,-1200.0,0.00012966,2]
[401435893,1768215038322,-236.6736,0.00012968,2]
[401435894,1768215038332,-24827.9708,0.00012968,2]
[401435895,1768215038341,-2500.0,0.00012968,2]
[401435896,1768215038351,-161.03069549,0.00012983,2]
[401435897,1768215038360,-9999.99,0.00013021,2]
[401435898,1768215038370,-299.99,0.00013021,2]
[401435899,1768215038379,-150.99,0.00013021,2]
[401435900,1768215038388,-1143.0,0.00013021,2]
[401435901,1768215038397,-5887.32,0.00013021,2]
[401435902,1768215038407,-3176.71,0.00013021,2]
[401435903,1768215038416,-3817.52,0.00013021,2]
[401435904,1768215038426,-87814.88,0.00013021,2]
[401435905,1768215038436,-7492.22,0.00013021,2]
[401435906,1768215038445,-9999.99,0.00013021,2]
[401435907,1768215038455,-9999.99,0.00013021,2]
[401435908,1768215038467,-999.99,0.00013021,2]
[401435910,1768215038476,-81528.87,0.00013021,2]
[401435912,1768215038486,-1466.28,0.00013021,2]
[401435914,1768215038497,-7980.43,0.00013021,2]
[401435916,1768215038507,-704.31,0.00013021,2]
[401435918,1768215038517,-1436.357,0.00013057,2]
[401435920,1768215038528,-156.82,0.00013057,2]
[401435922,1768215038538,-3243.8,0.00013057,2]
[401435924,1768215038549,-9999.99,0.00013057,2]
[401435926,1768215038559,-426.39,0.00013057,2]
[401435928,1768215038568,-150.99,0.00013057,2]
[401435930,1768215038578,-499.99,0.00013057,2]
[401435932,1768215038589,-1868.19608192,0.00013058,2]
[401435934,1768215038598,-500.0,0.0001306,2]
[401435937,1768215038611,-200.0,0.0001306,2]
[401435939,1768215038622,-151.0,0.0001306,2]
[401435941,1768215038632,-151.0,0.0001306,2]
[401435943,1768215038642,-151.0,0.0001306,2]
[401435945,1768215038652,-151.0,0.0001306,2]
[401435947,1768215038662,-151.0,0.0001306,2]
[401435949,1768215038672,-151.0,0.0001306,2]
[401435951,1768215038682,-151.0,0.0001306,2]
[401435953,1768215038692,-151.0,0.0001306,2]
[401435955,1768215038703,-151.0,0.0001306,2]
[401435957,1768215038714,-151.0,0.0001306,2]
[401435959,1768215038725,-151.0,0.0001306,2]
[401435961,1768215038734,-200.0,0.0001306,2]
[401435963,1768215038744,-151.0,0.0001306,2]
[401435965,1768215038754,-151.0,0.0001306,2]
[401435967,1768215038763,-500.0,0.0001306,2]
[401435969,1768215038773,-151.0,0.0001306,2]
[401435970,1768215038783,-151.0,0.0001306,2]
[401435971,1768215038793,-151.0,0.0001306,2]
[401435972,1768215038802,-151.0,0.0001306,2]
[401435973,1768215038815,-190.25340897,0.0001306,2]
[401435974,1768215038825,-200.0,0.0001306,2]
[401435975,1768215038834,-151.0,0.0001306,2]
[401435976,1768215038844,-151.0,0.0001306,2]
[401435977,1768215038855,-151.0,0.0001306,2]
[401435978,1768215038865,-151.0,0.0001306,2]
[401435979,1768215038874,-151.0,0.0001306,2]
[401435980,1768215038886,-151.0,0.0001306,2]
[401435982,1768215038896,-151.0,0.0001306,2]
[401435984,1768215038905,-151.0,0.0001306,2]
[401435986,1768215038915,-151.0,0.0001306,2]
[401435988,1768215038925,-151.0,0.0001306,2]
[401435990,1768215038934,-2599.4023,0.00013068,2]
[401435992,1768215038944,-379.49,0.00013083,2]
[401435994,1768215038954,-1000.0,0.00013178,2]
[401435996,1768215038965,-161.03069549,0.00013234,2]
[401435998,1768215038974,-241731.41754397,0.00013249,2]
[401435999,1768215038984,-704.31,0.00013295,2]
[401436001,1768215038994,-500.0,0.00013334,2]
[401436003,1768215039004,-3240.0,0.00013425,2]
[401436005,1768215039014,-3389.74947875,0.00013474,2]
[401436007,1768215039024,-704.31,0.00013569,2]
[401436008,1768215039034,-500.0,0.00013608,2]
[401436009,1768215039044,-200.0,0.00013608,2]
[401436010,1768215039054,-200.0,0.00013608,2]
[401436011,1768215039064,-500.0,0.00013608,2]
[401436012,1768215039074,-151.41116625,0.00013666,2]
[401436013,1768215039083,-195.0,0.00013682,2]
[401436014,1768215039093,-250.0,0.00013682,2]
[401436015,1768215039102,-500.0,0.00013698,2]
[401436016,1768215039112,-569.85484001,0.00013698,2]
[401436017,1768215039122,-500.0,0.00013698,2]
[401436018,1768215039131,-500.0,0.00013698,2]
[401436019,1768215039141,-500.0,0.00013698,2]
[401436020,1768215039156,-500.0,0.00013698,2]
[401436021,1768215039166,-356.46360209,0.00013698,2]
[401436022,1768215039175,-500.0,0.00013698,2]
[401436023,1768215039185,-500.0,0.00013698,2]
[401436024,1768215039194,-500.0,0.00013698,2]
[401436025,1768215039204,-500.0,0.00013698,2]
[401436026,1768215039213,-500.0,0.00013698,2]
[401436027,1768215039223,-500.0,0.00013698,2]
[401436028,1768215039232,-500.0,0.00013698,2]
[401436029,1768215039242,-500.0,0.00013698,2]
[401436030,1768215039251,-500.0,0.00013698,2]
[401436031,1768215039261,-500.0,0.00013698,2]
[401436032,1768215039272,-507.73004524,0.00013698,2]
[401436033,1768215039282,-500.0,0.00013698,2]
[401436034,1768215039294,-500.0,0.00013698,2]
[401436035,1768215039305,-500.0,0.00013698,2]